[Event "Live Chess"]
[Site "Chess.com"]
[Date "2023.05.20"]
[Round "-"]
[White "Ferrarifan27"]
[Black "Ayursworld"]
[Result "1-0"]
[WhiteElo "2104"]
[BlackElo "1342"]
[TimeControl "300"]
[EndTime "11:49:20 PDT"]
[Termination "Ferrarifan27 won by checkmate"]

1. e4 {[%clk 0:04:58.9]} 1... e5 {[%clk 0:04:55.1]} 2. Nf3 {[%clk 0:04:57.4]}
2... Nc6 {[%clk 0:04:52.2]} 3. Bb5 {[%clk 0:04:56.2]} 3... d6 {[%clk 0:04:49.4]}
4. O-O {[%clk 0:04:53.8]} 4... Nf6 {[%clk 0:04:46.1]} 5. d4 {[%clk 0:04:50.4]}
5... exd4 {[%clk 0:04:44.2]} 6. Nxd4 {[%clk 0:04:49.5]} 6... Bd7 {[%clk
0:04:43.1]} 7. Nxc6 {[%clk 0:04:48.8]} 7... Bxc6 {[%clk 0:04:41.3]} 8. Bxc6+
{[%clk 0:04:48.1]} 8... bxc6 {[%clk 0:04:40.1]} 9. Nc3 {[%clk 0:04:47.7]} 9...
Be7 {[%clk 0:04:38.8]} 10. Re1 {[%clk 0:04:44.1]} 10... O-O {[%clk 0:04:37.7]}
11. Bg5 {[%clk 0:04:42.5]} 11... h6 {[%clk 0:04:34.4]} 12. Bh4 {[%clk
0:04:40.1]} 12... Nh7 {[%clk 0:04:33]} 13. Bg3 {[%clk 0:04:34.9]} 13... Nf6
{[%clk 0:04:27.4]} 14. Qf3 {[%clk 0:04:30.4]} 14... Qd7 {[%clk 0:04:13.4]} 15.
Rad1 {[%clk 0:04:27.6]} 15... Qe6 {[%clk 0:03:59.3]} 16. b3 {[%clk 0:04:21.1]}
16... Rac8 {[%clk 0:03:50.5]} 17. e5 {[%clk 0:04:15.8]} 17... dxe5 {[%clk
0:03:49.1]} 18. Rxe5 {[%clk 0:04:10.3]} 18... Qxe5 {[%clk 0:03:35.7]} 19. Bxe5
{[%clk 0:04:07.8]} 19... Nd5 {[%clk 0:03:33.9]} 20. Nxd5 {[%clk 0:04:03]} 20...
cxd5 {[%clk 0:03:33]} 21. Qxd5 {[%clk 0:03:59.4]} 21... Bb4 {[%clk 0:03:32]} 22.
Qc4 {[%clk 0:03:50.4]} 22... a5 {[%clk 0:03:30.3]} 23. Qg4 {[%clk 0:03:46.4]}
23... g5 {[%clk 0:03:21.2]} 24. h4 {[%clk 0:03:41.1]} 24... Kh7 {[%clk 0:03:18]}
25. hxg5 {[%clk 0:03:39.3]} 25... hxg5 {[%clk 0:03:17.6]} 26. Qxg5 {[%clk
0:03:37.3]} 26... Rg8 {[%clk 0:03:16.4]} 27. Qh5# {[%clk 0:03:36.3]} 1-0

[Event "Live Chess"]
[Site "Chess.com"]
[Date "2023.05.20"]
[Round "-"]
[White "OleksiyJr1"]
[Black "booktrunk"]
[Result "0-1"]
[WhiteElo "930"]
[BlackElo "1322"]
[TimeControl "300"]
[EndTime "11:49:22 PDT"]
[Termination "booktrunk won by resignation"]

1. e4 {[%clk 0:04:57.9]} 1... d5 {[%clk 0:04:59.9]} 2. Nf3 {[%clk 0:04:57.2]}
2... dxe4 {[%clk 0:04:59]} 3. Ng5 {[%clk 0:04:55.5]} 3... Bf5 {[%clk 0:04:56.8]}
4. d3 {[%clk 0:04:54.3]} 4... exd3 {[%clk 0:04:55.6]} 5. Bxd3 {[%clk 0:04:53.5]}
5... Bxd3 {[%clk 0:04:53.9]} 6. Qxd3 {[%clk 0:04:50.6]} 6... Qxd3 {[%clk
0:04:52.5]} 7. cxd3 {[%clk 0:04:50.5]} 7... Nc6 {[%clk 0:04:51.5]} 8. Nc3 {[%clk
0:04:49.6]} 8... Nh6 {[%clk 0:04:47.5]} 9. Be3 {[%clk 0:04:36.9]} 9... b6 {[%clk
0:04:45.2]} 10. d4 {[%clk 0:04:32.8]} 10... O-O-O {[%clk 0:04:43.3]} 11. O-O-O
{[%clk 0:04:30.4]} 11... f6 {[%clk 0:04:38.1]} 12. d5 {[%clk 0:04:21.9]} 12...
Ne5 {[%clk 0:04:34.7]} 13. Nge4 {[%clk 0:04:17.6]} 13... Nf5 {[%clk 0:04:30.5]}
14. Bf4 {[%clk 0:04:09.4]} 14... Nc4 {[%clk 0:04:27.9]} 15. g4 {[%clk
0:03:52.2]} 15... Nfd6 {[%clk 0:04:17.9]} 16. Bxd6 {[%clk 0:03:25.6]} 16... Nxd6
{[%clk 0:04:11.6]} 17. Nxd6+ {[%clk 0:03:23.8]} 17... Rxd6 {[%clk 0:04:09.5]}
18. Nb5 {[%clk 0:03:20.9]} 18... Rd8 {[%clk 0:04:05.7]} 19. Nxa7+ {[%clk
0:03:19.1]} 19... Kb7 {[%clk 0:04:04.7]} 20. Nc6 {[%clk 0:03:17.5]} 20... Rd6
{[%clk 0:04:03.3]} 21. Kb1 {[%clk 0:03:05.2]} 21... h5 {[%clk 0:04:01]} 22. f3
{[%clk 0:02:41.8]} 22... hxg4 {[%clk 0:03:59.2]} 23. fxg4 {[%clk 0:02:41.7]}
23... Rh3 {[%clk 0:03:57.1]} 24. Rd2 {[%clk 0:02:29.7]} 24... e6 {[%clk
0:03:43.1]} 25. Nb4 {[%clk 0:02:23.3]} 25... exd5 {[%clk 0:03:40.5]} 26. Rxd5
{[%clk 0:02:15.8]} 26... Rxd5 {[%clk 0:03:38.1]} 27. Nxd5 {[%clk 0:02:15.7]}
27... Bd6 {[%clk 0:03:36.5]} 28. Kc2 {[%clk 0:01:53.9]} 28... Rxh2+ {[%clk
0:03:34.9]} 29. Rxh2 {[%clk 0:01:52.1]} 29... Bxh2 {[%clk 0:03:33.1]} 30. Ne7
{[%clk 0:01:51.2]} 30... Be5 {[%clk 0:03:28.7]} 31. Nf5 {[%clk 0:01:49.7]} 31...
g6 {[%clk 0:03:25.3]} 32. Nh6 {[%clk 0:01:47.7]} 32... Bf4 {[%clk 0:03:20.6]}
33. Ng8 {[%clk 0:01:45.9]} 33... f5 {[%clk 0:03:18.7]} 34. g5 {[%clk 0:01:33.3]}
34... Bxg5 {[%clk 0:03:16.6]} 35. Kd3 {[%clk 0:01:30.1]} 35... Kc6 {[%clk
0:03:11.2]} 36. Kd4 {[%clk 0:01:27.8]} 36... Kd6 {[%clk 0:03:09.2]} 37. Kc4
{[%clk 0:01:24.3]} 37... c6 {[%clk 0:03:06.6]} 38. b4 {[%clk 0:01:22.2]} 38...
f4 {[%clk 0:03:05]} 39. b5 {[%clk 0:01:19.9]} 0-1

[Event "Live Chess"]
[Site "Chess.com"]
[Date "2023.05.20"]
[Round "-"]
[White "JackRudd"]
[Black "TobyQuaite"]
[Result "1-0"]
[WhiteElo "2434"]
[BlackElo "1694"]
[TimeControl "300"]
[EndTime "11:49:23 PDT"]
[Termination "JackRudd won by checkmate"]

1. e4 {[%clk 0:04:59.2]} 1... e6 {[%clk 0:04:56.5]} 2. d4 {[%clk 0:04:57.7]}
2... d5 {[%clk 0:04:56.2]} 3. Nd2 {[%clk 0:04:56.3]} 3... dxe4 {[%clk
0:04:54.6]} 4. Nxe4 {[%clk 0:04:55]} 4... Nf6 {[%clk 0:04:54.4]} 5. Nxf6+ {[%clk
0:04:52.9]} 5... gxf6 {[%clk 0:04:54.3]} 6. Nf3 {[%clk 0:04:51.4]} 6... Nc6
{[%clk 0:04:53.8]} 7. Bd3 {[%clk 0:04:49]} 7... b6 {[%clk 0:04:53]} 8. c3 {[%clk
0:04:47.5]} 8... Bb7 {[%clk 0:04:52.1]} 9. Qe2 {[%clk 0:04:46.7]} 9... Qd6
{[%clk 0:04:51.5]} 10. g3 {[%clk 0:04:44.1]} 10... Be7 {[%clk 0:04:41.6]} 11.
Bf4 {[%clk 0:04:41.9]} 11... Qd7 {[%clk 0:04:30.3]} 12. O-O-O {[%clk 0:04:40.4]}
12... O-O-O {[%clk 0:04:27.1]} 13. Rhe1 {[%clk 0:04:34.8]} 13... f5 {[%clk
0:04:18.6]} 14. Ba6 {[%clk 0:04:31.7]} 14... Kb8 {[%clk 0:04:16.7]} 15. Bxb7
{[%clk 0:04:27.8]} 15... Kxb7 {[%clk 0:04:16.6]} 16. Qc4 {[%clk 0:04:21.2]}
16... Na5 {[%clk 0:04:09.1]} 17. Qd3 {[%clk 0:04:20.1]} 17... Qd5 {[%clk
0:04:03.5]} 18. Kb1 {[%clk 0:04:14.7]} 18... Bd6 {[%clk 0:03:59.4]} 19. Bxd6
{[%clk 0:04:10.8]} 19... Rxd6 {[%clk 0:03:52.6]} 20. Ne5 {[%clk 0:04:03.9]}
20... Rf8 {[%clk 0:03:29]} 21. Qf1 {[%clk 0:03:57.2]} 21... Nc6 {[%clk
0:03:13.1]} 22. c4 {[%clk 0:03:52.4]} 22... Qa5 {[%clk 0:03:11.9]} 23. c5 {[%clk
0:03:47.7]} 23... Rd5 {[%clk 0:02:51.2]} 24. Nxc6 {[%clk 0:03:42.4]} 24... Kxc6
{[%clk 0:02:51.1]} 25. Rc1 {[%clk 0:03:37.3]} 25... Kb7 {[%clk 0:02:48.8]} 26.
c6+ {[%clk 0:03:35.7]} 26... Kb8 {[%clk 0:02:42.9]} 27. Qc4 {[%clk 0:03:33.7]}
27... Qb5 {[%clk 0:02:30.4]} 28. Qc3 {[%clk 0:03:23.9]} 28... Rfd8 {[%clk
0:02:24.6]} 29. Red1 {[%clk 0:03:22.9]} 29... Qa5 {[%clk 0:02:20.6]} 30. Qe3
{[%clk 0:03:17.7]} 30... Qb4 {[%clk 0:02:07.5]} 31. a3 {[%clk 0:03:16.2]} 31...
Qa4 {[%clk 0:02:03]} 32. Qg5 {[%clk 0:03:15]} 32... Re8 {[%clk 0:01:25.2]} 33.
Qf6 {[%clk 0:03:07.6]} 33... Rd6 {[%clk 0:01:16.7]} 34. Qxf7 {[%clk 0:03:05.4]}
34... Red8 {[%clk 0:01:16.1]} 35. Qxh7 {[%clk 0:03:01.3]} 35... Rxd4 {[%clk
0:01:12.3]} 36. Rxd4 {[%clk 0:02:59.1]} 36... Qxd4 {[%clk 0:01:12.2]} 37. Qe7
{[%clk 0:02:56.8]} 37... Qe4+ {[%clk 0:01:06.2]} 38. Ka1 {[%clk 0:02:55.2]}
38... Qd5 {[%clk 0:00:59]} 39. h4 {[%clk 0:02:51.6]} 39... Rh8 {[%clk
0:00:51.1]} 40. h5 {[%clk 0:02:48.6]} 40... f4 {[%clk 0:00:47.5]} 41. Qf6 {[%clk
0:02:45]} 41... Qxh5 {[%clk 0:00:41.8]} 42. Qxf4 {[%clk 0:02:43.6]} 42... Qe8
{[%clk 0:00:31.6]} 43. Qe4 {[%clk 0:02:37.9]} 43... a5 {[%clk 0:00:25.9]} 44. f4
{[%clk 0:02:35.9]} 44... Rf8 {[%clk 0:00:25.2]} 45. g4 {[%clk 0:02:33.8]} 45...
Qf7 {[%clk 0:00:24.7]} 46. Rc4 {[%clk 0:02:26.4]} 46... Kc8 {[%clk 0:00:23.3]}
47. g5 {[%clk 0:02:24.6]} 47... Qf5 {[%clk 0:00:18.2]} 48. g6 {[%clk 0:02:21.2]}
48... Kd8 {[%clk 0:00:11.9]} 49. Qd4+ {[%clk 0:02:18.9]} 49... Ke7 {[%clk
0:00:09]} 50. Qg7+ {[%clk 0:02:12.7]} 50... Kd6 {[%clk 0:00:06.9]} 51. Qd7#
{[%clk 0:02:11.7]} 1-0

[Event "Live Chess"]
[Site "Chess.com"]
[Date "2023.05.20"]
[Round "-"]
[White "Salpingidis"]
[Black "1600x"]
[Result "0-1"]
[WhiteElo "2278"]
[BlackElo "1685"]
[TimeControl "300"]
[EndTime "11:49:24 PDT"]
[Termination "1600x won by resignation"]

1. d4 {[%clk 0:04:58.2]} 1... Nf6 {[%clk 0:04:55.9]} 2. c4 {[%clk 0:04:56.5]}
2... e6 {[%clk 0:04:53.8]} 3. Nc3 {[%clk 0:04:55.1]} 3... d5 {[%clk 0:04:47.2]}
4. cxd5 {[%clk 0:04:53.4]} 4... exd5 {[%clk 0:04:45.5]} 5. Bg5 {[%clk
0:04:52.9]} 5... Nbd7 {[%clk 0:04:43.9]} 6. e3 {[%clk 0:04:50.7]} 6... c6 {[%clk
0:04:41.4]} 7. Bd3 {[%clk 0:04:49.2]} 7... h6 {[%clk 0:04:39.6]} 8. Bh4 {[%clk
0:04:47.1]} 8... Bd6 {[%clk 0:04:37.9]} 9. Nge2 {[%clk 0:04:45.1]} 9... O-O
{[%clk 0:04:35.5]} 10. Qc2 {[%clk 0:04:39.4]} 10... Re8 {[%clk 0:04:34]} 11. Bg3
{[%clk 0:04:32.7]} 11... Bxg3 {[%clk 0:04:31.5]} 12. hxg3 {[%clk 0:04:32.6]}
12... Nf8 {[%clk 0:04:29.6]} 13. O-O-O {[%clk 0:04:30.3]} 13... Bg4 {[%clk
0:04:27.1]} 14. Kb1 {[%clk 0:04:27.1]} 14... a5 {[%clk 0:04:25.3]} 15. f3 {[%clk
0:04:22.8]} 15... Bc8 {[%clk 0:04:23.6]} 16. e4 {[%clk 0:04:19.6]} 16... dxe4
{[%clk 0:04:21.9]} 17. fxe4 {[%clk 0:04:18.4]} 17... Ng4 {[%clk 0:04:19.9]} 18.
Bc4 {[%clk 0:03:52]} 18... Nf2 {[%clk 0:04:13.4]} 19. Rdf1 {[%clk 0:03:49.2]}
19... Nxh1 {[%clk 0:04:11.9]} 20. Bxf7+ {[%clk 0:03:47.6]} 20... Kh8 {[%clk
0:04:08]} 21. Bxe8 {[%clk 0:03:45.2]} 21... Qxe8 {[%clk 0:04:07.7]} 22. Rxh1
{[%clk 0:03:43.3]} 22... Bg4 {[%clk 0:04:05.7]} 23. Nf4 {[%clk 0:03:39.9]} 23...
Ne6 {[%clk 0:04:03.9]} 24. Qd2 {[%clk 0:03:30.4]} 24... b5 {[%clk 0:04:00.5]}
25. d5 {[%clk 0:03:23.7]} 25... Nxf4 {[%clk 0:03:57.7]} 26. gxf4 {[%clk
0:03:21.5]} 26... b4 {[%clk 0:03:55.1]} 27. Nd1 {[%clk 0:02:56.9]} 27... Qxe4+
{[%clk 0:03:50.7]} 28. Ka1 {[%clk 0:02:53.7]} 28... Qxd5 {[%clk 0:03:49.3]} 29.
Qxd5 {[%clk 0:02:50.5]} 29... cxd5 {[%clk 0:03:48.9]} 30. Ne3 {[%clk 0:02:50.1]}
30... Be6 {[%clk 0:03:47.5]} 31. f5 {[%clk 0:02:47.7]} 31... Bf7 {[%clk
0:03:46.1]} 32. Nc2 {[%clk 0:02:42.1]} 32... Re8 {[%clk 0:03:44.4]} 33. Nd4
{[%clk 0:02:41.7]} 33... Re4 {[%clk 0:03:43.1]} 34. Rd1 {[%clk 0:02:41]} 34...
Bh5 {[%clk 0:03:41.4]} 35. Nf3 {[%clk 0:02:28.9]} 35... Re2 {[%clk 0:03:39.7]}
36. Rxd5 {[%clk 0:01:50.4]} 36... Bxf3 {[%clk 0:03:37.4]} 37. Rd1 {[%clk
0:01:37.7]} 37... Bxg2 {[%clk 0:03:34.6]} 38. Kb1 {[%clk 0:01:32.3]} 38... Be4+
{[%clk 0:03:31.6]} 39. Ka1 {[%clk 0:01:31.8]} 39... Kh7 {[%clk 0:03:29.4]} 40.
a4 {[%clk 0:01:29.4]} 40... Bc2 {[%clk 0:03:21.2]} 41. Rf1 {[%clk 0:01:22.4]}
41... Kg8 {[%clk 0:03:18.5]} 42. Ka2 {[%clk 0:01:14.9]} 42... Kf7 {[%clk
0:03:10]} 43. Rf3 {[%clk 0:01:09]} 43... Kf6 {[%clk 0:03:08.6]} 44. Rg3 {[%clk
0:00:58.8]} 44... Bxf5 {[%clk 0:03:02.4]} 45. Rg1 {[%clk 0:00:52.1]} 45... h5
{[%clk 0:02:59.2]} 46. Ka1 {[%clk 0:00:51.2]} 46... b3 {[%clk 0:02:57.2]} 47.
Rg6+ {[%clk 0:00:44.3]} 47... Ke5 {[%clk 0:02:55.3]} 48. Re6+ {[%clk 0:00:43.4]}
48... Bxe6 {[%clk 0:02:52.6]} 0-1

[Event "Live Chess"]
[Site "Chess.com"]
[Date "2023.05.20"]
[Round "-"]
[White "Pablo_dmp"]
[Black "KeithArkell"]
[Result "0-1"]
[WhiteElo "1856"]
[BlackElo "2609"]
[TimeControl "300"]
[EndTime "11:49:43 PDT"]
[Termination "KeithArkell won by resignation"]

1. e4 {[%clk 0:04:59.5]} 1... c6 {[%clk 0:04:58.5]} 2. d4 {[%clk 0:04:58.1]}
2... d5 {[%clk 0:04:57.9]} 3. e5 {[%clk 0:04:57.8]} 3... c5 {[%clk 0:04:57.2]}
4. dxc5 {[%clk 0:04:57.7]} 4... Nc6 {[%clk 0:04:56.5]} 5. f4 {[%clk 0:04:56.3]}
5... Bf5 {[%clk 0:04:54.8]} 6. Nf3 {[%clk 0:04:53.3]} 6... e6 {[%clk 0:04:54]}
7. Be3 {[%clk 0:04:51.4]} 7... Nge7 {[%clk 0:04:51.6]} 8. c3 {[%clk 0:04:49.8]}
8... Bg4 {[%clk 0:04:50.7]} 9. Be2 {[%clk 0:04:38.9]} 9... Nf5 {[%clk 0:04:50]}
10. Bf2 {[%clk 0:04:37.8]} 10... b6 {[%clk 0:04:36.7]} 11. Bb5 {[%clk
0:04:30.1]} 11... Qc7 {[%clk 0:04:35.6]} 12. Qa4 {[%clk 0:04:28.1]} 12... Rc8
{[%clk 0:04:25.3]} 13. Bxc6+ {[%clk 0:04:27]} 13... Qxc6 {[%clk 0:04:24.2]} 14.
Qxc6+ {[%clk 0:04:26.9]} 14... Rxc6 {[%clk 0:04:23.4]} 15. cxb6 {[%clk
0:04:26.8]} 15... axb6 {[%clk 0:04:22.2]} 16. Nbd2 {[%clk 0:04:24.8]} 16... Bc5
{[%clk 0:04:18.7]} 17. Bxc5 {[%clk 0:04:19.9]} 17... bxc5 {[%clk 0:04:18.6]} 18.
O-O {[%clk 0:04:17.2]} 18... Ne3 {[%clk 0:04:16.1]} 19. Rf2 {[%clk 0:04:02.9]}
19... Ra6 {[%clk 0:04:10.8]} 20. a3 {[%clk 0:03:56.3]} 20... c4 {[%clk 0:04:08]}
21. Nf1 {[%clk 0:03:51.5]} 21... Nf5 {[%clk 0:04:05.6]} 22. Ng3 {[%clk
0:03:47.5]} 22... Nxg3 {[%clk 0:03:55.9]} 23. hxg3 {[%clk 0:03:47.4]} 23... Ke7
{[%clk 0:03:53]} 24. Nh2 {[%clk 0:03:41.1]} 24... h5 {[%clk 0:03:51]} 25. Nxg4
{[%clk 0:03:32.2]} 25... hxg4 {[%clk 0:03:50.9]} 26. Kf1 {[%clk 0:03:30.9]}
26... f6 {[%clk 0:03:48.7]} 27. Ke2 {[%clk 0:03:24.1]} 27... fxe5 {[%clk
0:03:46.3]} 28. fxe5 {[%clk 0:03:24]} 28... Rh5 {[%clk 0:03:45.3]} 29. Raf1
{[%clk 0:03:14.5]} 29... Rxe5+ {[%clk 0:03:43.9]} 30. Kd2 {[%clk 0:03:13.8]}
30... Kd6 {[%clk 0:03:39.5]} 31. Rf7 {[%clk 0:03:12.1]} 31... Rb6 {[%clk
0:03:38.3]} 32. Kc1 {[%clk 0:02:49.6]} 32... g6 {[%clk 0:03:34.7]} 33. Rg7
{[%clk 0:02:40.7]} 33... Re2 {[%clk 0:03:29.1]} 34. Rff7 {[%clk 0:02:36.3]}
34... Rbxb2 {[%clk 0:03:25.5]} 35. Rd7+ {[%clk 0:02:18.3]} 35... Ke5 {[%clk
0:03:23.9]} 36. Rxg6 {[%clk 0:02:15.1]} 36... Rec2+ {[%clk 0:03:22.4]} 37. Kd1
{[%clk 0:02:13.7]} 37... Rxg2 {[%clk 0:03:21.5]} 38. Kc1 {[%clk 0:02:11.7]}
38... Rbf2 {[%clk 0:03:19.2]} 39. Rg5+ {[%clk 0:01:55.7]} 39... Kf6 {[%clk
0:03:17.8]} 40. Rgxd5 {[%clk 0:01:50]} 40... exd5 {[%clk 0:03:15.5]} 41. Rxd5
{[%clk 0:01:49.9]} 41... Rf1+ {[%clk 0:03:13.4]} 42. Rd1 {[%clk 0:01:49]} 42...
Rxd1+ {[%clk 0:03:12.7]} 43. Kxd1 {[%clk 0:01:48.9]} 43... Rxg3 {[%clk
0:03:12.1]} 44. Kc2 {[%clk 0:01:47.2]} 44... Rg2+ {[%clk 0:03:10.8]} 0-1

[Event "Live Chess"]
[Site "Chess.com"]
[Date "2023.05.20"]
[Round "-"]
[White "MJMykh"]
[Black "Leonid_Starozhilov"]
[Result "0-1"]
[WhiteElo "1034"]
[BlackElo "2653"]
[TimeControl "300"]
[EndTime "11:49:45 PDT"]
[Termination "Leonid_Starozhilov won by checkmate"]

1. e4 {[%clk 0:04:58.8]} 1... Nc6 {[%clk 0:04:58.2]} 2. Nf3 {[%clk 0:04:57.4]}
2... d5 {[%clk 0:04:57]} 3. exd5 {[%clk 0:04:56.1]} 3... Qxd5 {[%clk 0:04:56.9]}
4. Nc3 {[%clk 0:04:56]} 4... Qa5 {[%clk 0:04:56.1]} 5. Bb5 {[%clk 0:04:53]} 5...
Nf6 {[%clk 0:04:49.8]} 6. Bxc6+ {[%clk 0:04:52]} 6... bxc6 {[%clk 0:04:49]} 7.
O-O {[%clk 0:04:51.5]} 7... Bg4 {[%clk 0:04:48.3]} 8. h3 {[%clk 0:04:50]} 8...
Bh5 {[%clk 0:04:47.7]} 9. a3 {[%clk 0:04:49]} 9... e6 {[%clk 0:04:43.8]} 10. b4
{[%clk 0:04:47.8]} 10... Bxb4 {[%clk 0:04:41.4]} 11. Bb2 {[%clk 0:04:44.3]}
11... Bd6 {[%clk 0:04:38.3]} 12. Re1 {[%clk 0:04:33.5]} 12... Rb8 {[%clk
0:04:34.4]} 13. Bc1 {[%clk 0:04:22.3]} 13... O-O {[%clk 0:04:27]} 14. Ne4 {[%clk
0:04:05.4]} 14... Nxe4 {[%clk 0:04:16.7]} 15. Rxe4 {[%clk 0:04:04.3]} 15... Qf5
{[%clk 0:04:15.1]} 16. Re3 {[%clk 0:03:55.7]} 16... Bxf3 {[%clk 0:03:58.9]} 17.
Rxf3 {[%clk 0:03:49]} 17... Qe5 {[%clk 0:03:58]} 18. c3 {[%clk 0:03:30.2]} 18...
Qh2+ {[%clk 0:03:55.7]} 19. Kf1 {[%clk 0:03:27.8]} 19... Qh1+ {[%clk 0:03:55]}
20. Ke2 {[%clk 0:03:26.6]} 20... Qxg2 {[%clk 0:03:54.9]} 21. d3 {[%clk
0:03:16.4]} 21... Rb5 {[%clk 0:03:41.8]} 22. Re3 {[%clk 0:03:05.5]} 22... Rf5
{[%clk 0:03:37.8]} 23. Qf1 {[%clk 0:02:43.8]} 23... Qg6 {[%clk 0:03:19.8]} 24.
Bd2 {[%clk 0:02:30.8]} 24... Bf4 {[%clk 0:02:31.4]} 25. Re4 {[%clk 0:02:13.6]}
25... Bxd2 {[%clk 0:02:27.4]} 26. Kxd2 {[%clk 0:02:12.5]} 26... Rd8 {[%clk
0:02:25.6]} 27. d4 {[%clk 0:02:05.9]} 27... c5 {[%clk 0:02:20.8]} 28. Ke3 {[%clk
0:01:42.7]} 28... cxd4+ {[%clk 0:02:15.7]} 29. cxd4 {[%clk 0:01:39.4]} 29... c5
{[%clk 0:02:10.7]} 30. Rd1 {[%clk 0:01:32.9]} 30... Rfd5 {[%clk 0:02:07.4]} 31.
Qc4 {[%clk 0:01:15]} 31... Qxe4+ {[%clk 0:02:00.1]} 32. Kxe4 {[%clk 0:01:11.5]}
32... Rxd4+ {[%clk 0:01:59.3]} 33. Rxd4 {[%clk 0:01:09.7]} 33... Rxd4+ {[%clk
0:01:57.8]} 34. Qxd4 {[%clk 0:01:09]} 34... cxd4 {[%clk 0:01:57.7]} 35. Kxd4
{[%clk 0:01:08.3]} 35... g5 {[%clk 0:01:56.6]} 36. Ke5 {[%clk 0:01:06.6]} 36...
Kg7 {[%clk 0:01:55.3]} 37. a4 {[%clk 0:01:05.7]} 37... h5 {[%clk 0:01:53.8]} 38.
a5 {[%clk 0:01:02.8]} 38... Kg6 {[%clk 0:01:52.7]} 39. a6 {[%clk 0:01:01.7]}
39... h4 {[%clk 0:01:48.3]} 40. Ke4 {[%clk 0:01:00]} 40... f5+ {[%clk
0:01:46.5]} 41. Kf3 {[%clk 0:00:58.5]} 41... e5 {[%clk 0:01:44.3]} 42. Kg2
{[%clk 0:00:57.1]} 42... e4 {[%clk 0:01:43.6]} 43. f3 {[%clk 0:00:53.3]} 43...
e3 {[%clk 0:01:42.8]} 44. Kf1 {[%clk 0:00:52.3]} 44... f4 {[%clk 0:01:41.3]} 45.
Ke2 {[%clk 0:00:50.6]} 45... Kf6 {[%clk 0:01:40.5]} 46. Ke1 {[%clk 0:00:49]}
46... Ke6 {[%clk 0:01:39.9]} 47. Ke2 {[%clk 0:00:48.2]} 47... Kd6 {[%clk
0:01:37.7]} 48. Kd3 {[%clk 0:00:46.7]} 48... Kc6 {[%clk 0:01:36.8]} 49. Ke2
{[%clk 0:00:45.8]} 49... Kb6 {[%clk 0:01:36.3]} 50. Kd3 {[%clk 0:00:45.7]} 50...
Kxa6 {[%clk 0:01:35.6]} 51. Ke2 {[%clk 0:00:45]} 51... Kb5 {[%clk 0:01:35.2]}
52. Kd3 {[%clk 0:00:44.1]} 52... Kc5 {[%clk 0:01:34.9]} 53. Ke2 {[%clk
0:00:43.2]} 53... Kd4 {[%clk 0:01:34.3]} 54. Kd1 {[%clk 0:00:42.1]} 54... Kd3
{[%clk 0:01:33.5]} 55. Ke1 {[%clk 0:00:42]} 55... a5 {[%clk 0:01:28.7]} 56. Kd1
{[%clk 0:00:41]} 56... a4 {[%clk 0:01:28.1]} 57. Ke1 {[%clk 0:00:40.2]} 57... a3
{[%clk 0:01:27.4]} 58. Kd1 {[%clk 0:00:40]} 58... a2 {[%clk 0:01:26.5]} 59. Ke1
{[%clk 0:00:37.6]} 59... e2 {[%clk 0:01:25.4]} 60. Kf2 {[%clk 0:00:36.1]} 60...
Kd2 {[%clk 0:01:23.6]} 61. Kg2 {[%clk 0:00:34.9]} 61... a1=Q {[%clk 0:01:20.4]}
62. Kh2 {[%clk 0:00:32]} 62... Ke3 {[%clk 0:01:18.9]} 63. Kg2 {[%clk 0:00:30.4]}
63... e1=Q {[%clk 0:01:13.7]} 64. Kh2 {[%clk 0:00:28.6]} 64... g4 {[%clk
0:01:08.6]} 65. hxg4 {[%clk 0:00:26.7]} 65... h3 {[%clk 0:01:05.3]} 66. g5
{[%clk 0:00:22.3]} 66... Qh1# {[%clk 0:01:01.8]} 0-1

[Event "Live Chess"]
[Site "Chess.com"]
[Date "2023.05.20"]
[Round "-"]
[White "wadsy27"]
[Black "mightysmasher"]
[Result "1-0"]
[WhiteElo "2584"]
[BlackElo "2129"]
[TimeControl "300"]
[EndTime "11:49:46 PDT"]
[Termination "wadsy27 won by checkmate"]

1. e4 {[%clk 0:04:57.6]} 1... e6 {[%clk 0:04:55.8]} 2. d4 {[%clk 0:04:55.5]}
2... d5 {[%clk 0:04:55]} 3. e5 {[%clk 0:04:54.9]} 3... c5 {[%clk 0:04:53.4]} 4.
c3 {[%clk 0:04:53.9]} 4... Nc6 {[%clk 0:04:51.8]} 5. Nf3 {[%clk 0:04:53.2]} 5...
Qb6 {[%clk 0:04:50.6]} 6. Bd3 {[%clk 0:04:52.4]} 6... Bd7 {[%clk 0:04:49.8]} 7.
O-O {[%clk 0:04:48.8]} 7... Rc8 {[%clk 0:04:48.7]} 8. Re1 {[%clk 0:04:45.6]}
8... cxd4 {[%clk 0:04:47.2]} 9. h4 {[%clk 0:04:42.6]} 9... dxc3 {[%clk
0:04:45.9]} 10. Nxc3 {[%clk 0:04:41.2]} 10... Bb4 {[%clk 0:04:45.1]} 11. h5
{[%clk 0:04:31.6]} 11... d4 {[%clk 0:04:43.2]} 12. Ne4 {[%clk 0:04:29.3]} 12...
Bxe1 {[%clk 0:04:41.2]} 13. Nd6+ {[%clk 0:04:24.8]} 13... Kf8 {[%clk 0:04:39.9]}
14. Qxe1 {[%clk 0:04:20.6]} 14... Nge7 {[%clk 0:04:38.7]} 15. h6 {[%clk
0:04:17.4]} 15... g6 {[%clk 0:04:36.9]} 16. Bg5 {[%clk 0:04:15.5]} 16... Nf5
{[%clk 0:04:34.6]} 17. Nxc8 {[%clk 0:04:07.6]} 17... Bxc8 {[%clk 0:04:32.8]} 18.
g4 {[%clk 0:04:03.3]} 18... Nfe7 {[%clk 0:04:31.6]} 19. Bf6 {[%clk 0:04:00.9]}
19... Rg8 {[%clk 0:04:30.3]} 20. Ng5 {[%clk 0:03:51]} 20... Nd5 {[%clk
0:04:26.2]} 21. Nxh7+ {[%clk 0:03:48]} 21... Ke8 {[%clk 0:04:25.3]} 22. Be4
{[%clk 0:03:34.8]} 22... Nf4 {[%clk 0:04:21.1]} 23. Ng5 {[%clk 0:03:30.8]} 23...
Bd7 {[%clk 0:04:09.9]} 24. h7 {[%clk 0:03:29.2]} 24... Rf8 {[%clk 0:04:09.1]}
25. Bg7 {[%clk 0:03:28.4]} 25... Nxe5 {[%clk 0:04:07.7]} 26. Bxf8 {[%clk
0:03:23]} 26... Nxg4 {[%clk 0:04:02.5]} 27. h8=Q {[%clk 0:03:20.2]} 27... d3
{[%clk 0:04:01.8]} 28. Bd6# {[%clk 0:03:18.2]} 1-0